[Event "CZE-ch Youth G16 2022"]
[Site "Luhacovice"]
[Date "2022.03.18"]
[Round "8.8"]
[White "Sehnoutkova, Laura"]
[Black "Sargsyan, Anna B."]
[Result "1-0"]
[ECO "A40"]
[WhiteElo "1126"]
[BlackElo "1602"]
[Annotator "NA"]
[PlyCount "61"]
[EventDate "2022.03.12"]
[EventType "swiss"]
[EventCountry "CZE"]
[SourceTitle "playchess.com"]
[Source "ChessBase"]
[SourceQuality "1"]
[TimeControl "40/5400+30:1800+30"]

1. d4 {[%emt 0:00:02]} e5 {[%emt 0:00:20]} 2. dxe5 {[%emt 0:01:53]} Nc6 {[%emt 0:00:18]} 3. Nf3 {[%emt 0:00:12]} Qe7 {[%emt 0:00:44]} 4. e3 {[%emt 0:02:11]} Nxe5 {[%emt 0:01:43]} 5. Nbd2 {[%emt 0:00:24]} d6 {[%emt 0:01:47]} 6. Nxe5 {[%emt 0:02:36]} dxe5 {[%emt 0:02:57]} 7. b3 {[%emt 0:00:46]} g6 {[%emt 0:02:17]} 8. Bb2 {[%emt 0:00:28]} Bg7 {[%emt 0:00:39]} 9. Be2 {[%emt 0:02:17]} Bd7 {[%emt 0:01:43]} 10. Bf3 {[%emt 0:05:16]} O-O-O {[%emt 0:02:11]} 11. Qe2 {[%emt 0:03:27]} Nh6 {[%emt 0:04:22]} 12. O-O {[%emt 0:04:25]} Nf5 {[%emt 0:02:06]} 13. a4 {[%emt 0:01:33]} Nh4 {[%emt 0:03:39]} 14. a5 {[%emt 0:04:46]} Nxf3+ {[%emt 0:00:46]} 15. Nxf3 {[%emt 0:00:08]} Bc6 {[%emt 0:01:41]} 16. a6 {[%emt 0:04:38]} Kb8 {[%emt 0:04:31]} 17. axb7 {[%emt 0:02:17]} Bxb7 {[%emt 0:01:23]} 18. Qb5 {[%emt 0:04:45]} Rd6 {[%emt 0:05:23]} 19. Ba3 {[%emt 0:02:35]} Rb6 {[%emt 0:02:08]} 20. Qxb6 {[%emt 0:00:57]} cxb6 {[%emt 0:01:00]} 21. Bxe7 {[%emt 0:00:09]} e4 {[%emt 0:00:28]} 22. Nd4 {[%emt 0:00:13]} Bf8 {[%emt 0:04:02]} 23. Bxf8 {[%emt 0:00:54]} Rxf8 {[%emt 0:00:10]} 24. Nb5 {[%emt 0:00:55]} a6 {[%emt 0:02:55]} 25. Nd6 {[%emt 0:00:41]} a5 {[%emt 0:01:51]} 26. Nxb7 {[%emt 0:00:09]} Kxb7 {[%emt 0:00:07]} 27. Rfd1 {[%emt 0:00:07]} Rc8 {[%emt 0:01:09]} 28. c4 {[%emt 0:00:42]} Rc7 {[%emt 0:01:09]} 29. Rd4 {[%emt 0:00:30]} f5 {[%emt 0:00:29]} 30. Rad1 {[%emt 0:00:06]} h5 {[%emt 0:01:57]} 31. Rd7 {[%emt 0:00:13]} 1-0

[Event "CZE-ch Youth G16 2022"]
[Site "Luhacovice"]
[Date "2022.03.19"]
[Round "9.1"]
[White "Voriskova, Anna"]
[Black "Smajzrova, Dominika"]
[Result "1-0"]
[ECO "D36"]
[WhiteElo "1812"]
[BlackElo "1203"]
[Annotator "NA"]
[PlyCount "73"]
[EventDate "2022.03.12"]
[EventType "swiss"]
[EventCountry "CZE"]
[SourceTitle "playchess.com"]
[Source "ChessBase"]
[SourceQuality "1"]
[TimeControl "40/5400+30:1800+30"]

1. d4 d5 2. c4 e6 3. Nc3 Nf6 4. cxd5 exd5 5. Bg5 Ng8 {[%emt 0:01:51]} 6. Bc1 {[%emt 0:01:33]} Nf6 {[%emt 0:00:16]} 7. Bg5 {[%emt 0:00:10]} c6 {[%emt 0:01:35]} 8. Qc2 {[%emt 0:01:10]} Nbd7 {[%emt 0:04:37]} 9. e3 {[%emt 0:00:33]} Qa5 {[%emt 0:01:57]} 10. Bd3 {[%emt 0:08:43]} Bb4 {[%emt 0:04:16]} 11. Nf3 {[%emt 0:00:23]} O-O {[%emt 0:03:23]} 12. O-O {[%emt 0:00:16]} Re8 {[%emt 0:07:08]} 13. Nd2 {[%emt 0:03:49]} Bxc3 {[%emt 0:04:37]} 14. bxc3 {[%emt 0:00:16]} Qd8 {[%emt 0:03:19]} 15. Bxh7+ {[%emt 0:00:31]} Kh8 {[%emt 0:05:47]} 16. Bd3 {[%emt 0:01:53]} b6 {[%emt 0:04:28]} 17. c4 {[%emt 0:02:52]} Qc7 {[%emt 0:08:17]} 18. Bf4 {[%emt 0:00:26]} Qd8 {[%emt 0:00:15]} 19. Bg3 {[%emt 0:00:47]} Kg8 {[%emt 0:07:30]} 20. cxd5 {[%emt 0:00:55]} cxd5 {[%emt 0:01:11]} 21. Rfc1 {[%emt 0:01:48]} Nf8 {[%emt 0:02:06]} 22. Bb5 {[%emt 0:01:32]} Bd7 {[%emt 0:01:33]} 23. Qa4 {[%emt 0:01:20]} Bxb5 {[%emt 0:01:43]} 24. Qxb5 {[%emt 0:00:26]} Ne6 {[%emt 0:00:29]} 25. a4 {[%emt 0:01:47]} Qd7 {[%emt 0:01:58]} 26. Rab1 {[%emt 0:01:02]} Qxb5 {[%emt 0:02:08]} 27. Rxb5 {[%emt 0:00:09]} Rec8 {[%emt 0:02:43]} 28. Rbb1 {[%emt 0:00:11]} Nd7 {[%emt 0:04:40]} 29. h3 {[%emt 0:01:03]} a5 {[%emt 0:01:14]} 30. Nf3 {[%emt 0:01:01]} f6 {[%emt 0:01:58]} 31. Nh4 {[%emt 0:00:44]} Kf8 {[%emt 0:05:17]} 32. Nf5 {[%emt 0:00:46]} g6 {[%emt 0:03:41]} 33. Nd6 {[%emt 0:00:39]} Rd8 {[%emt 0:03:36]} 34. Nb5 {[%emt 0:02:06]} Nb8 {[%emt 0:01:39]} 35. Nc7 {[%emt 0:00:52]} Nxc7 {[%emt 0:00:28]} 36. Bxc7 {[%emt 0:00:48]} Rc8 {[%emt 0:01:42]} 37. Bd6+ {[%emt 0:00:06]} 1-0

[Event "CZE-ch Youth G16 2022"]
[Site "Luhacovice"]
[Date "2022.03.19"]
[Round "9.2"]
[White "Nespora, Tatana"]
[Black "Nagyova, Daniela"]
[Result "0-1"]
[ECO "C30"]
[WhiteElo "1452"]
[BlackElo "1623"]
[Annotator "NA"]
[PlyCount "72"]
[EventDate "2022.03.12"]
[EventType "swiss"]
[EventCountry "CZE"]
[SourceTitle "playchess.com"]
[Source "ChessBase"]
[SourceQuality "1"]
[TimeControl "40/5400+30:1800+30"]

1. e4 {[%emt 0:00:31]} e5 {[%emt 0:00:11]} 2. f4 {[%emt 0:00:54]} Bc5 {[%emt 0:00:56]} 3. Nf3 {[%emt 0:01:02]} d6 {[%emt 0:02:01]} 4. c3 {[%emt 0:00:54]} Nf6 {[%emt 0:05:00]} 5. d4 {[%emt 0:01:56]} exd4 {[%emt 0:04:07]} 6. cxd4 {[%emt 0:00:19]} Bb4+ {[%emt 0:02:19]} 7. Bd2 {[%emt 0:01:18]} Bxd2+ {[%emt 0:01:01]} 8. Nbxd2 {[%emt 0:00:27]} d5 {[%emt 0:04:39]} 9. e5 {[%emt 0:02:01]} Qe7 {[%emt 0:05:00]} 10. Bd3 {[%emt 0:06:57]} Nfd7 {[%emt 0:04:21]} 11. O-O {[%emt 0:03:03]} c5 {[%emt 0:06:32]} 12. Qc2 {[%emt 0:02:24]} Nc6 {[%emt 0:04:22]} 13. a3 {[%emt 0:05:09]} g6 {[%emt 0:03:27]} 14. Rae1 {[%emt 0:06:56]} c4 {[%emt 0:04:35]} 15. Nxc4 {[%emt 0:01:20]} dxc4 {[%emt 0:01:19]} 16. Bxc4 {[%emt 0:00:13]} Nb6 {[%emt 0:03:18]} 17. Ba2 {[%emt 0:00:45]} Be6 {[%emt 0:02:15]} 18. b4 {[%emt 0:06:51]} Rd8 {[%emt 0:05:49]} 19. Rd1 {[%emt 0:02:09]} Nd5 {[%emt 0:02:07]} 20. Qc1 {[%emt 0:05:47]} a6 {[%emt 0:08:10]} 21. Ng5 {[%emt 0:04:32]} Nc7 {[%emt 0:05:19]} 22. Ne4 {[%emt 0:17:04]} Nxd4 {[%emt 0:08:14]} 23. Nf6+ {[%emt 0:01:42]} Qxf6 {[%emt 0:02:33]} 24. Rxd4 {[%emt 0:03:00]} Qe7 {[%emt 0:00:13]} 25. Rxd8+ {[%emt 0:00:49]} Qxd8 {[%emt 0:00:19]} 26. Bxe6 {[%emt 0:00:19]} fxe6 {[%emt 0:01:23]} 27. Rd1 {[%emt 0:00:38]} Nd5 {[%emt 0:00:49]} 28. Qc5 {[%emt 0:00:52]} Kf7 {[%emt 0:00:37]} 29. g3 {[%emt 0:00:28]} Qe7 {[%emt 0:01:13]} 30. Qxe7+ {[%emt 0:00:18]} Kxe7 {[%emt 0:00:10]} 31. Rc1 {[%emt 0:00:18]} Kd7 {[%emt 0:00:17]} 32. Kf2 {[%emt 0:00:35]} Rc8 {[%emt 0:00:28]} 33. Rxc8 {[%emt 0:00:15]} Kxc8 {[%emt 0:00:01]} 34. Ke2 {[%emt 0:00:22]} Kc7 {[%emt 0:00:28]} 35. Kd3 {[%emt 0:00:07]} Kc6 {[%emt 0:00:22]} 36. Kd4 {[%emt 0:00:43]} Kb5 {[%emt 0:00:36]} 0-1

[Event "CZE-ch Youth G16 2022"]
[Site "Luhacovice"]
[Date "2022.03.19"]
[Round "9.3"]
[White "Seda, Michaela"]
[Black "Markova, Karolina"]
[Result "0-1"]
[ECO "B72"]
[WhiteElo "1364"]
[BlackElo "1589"]
[Annotator "NA"]
[PlyCount "120"]
[EventDate "2022.03.12"]
[EventType "swiss"]
[EventCountry "CZE"]
[SourceTitle "playchess.com"]
[Source "ChessBase"]
[SourceQuality "1"]
[TimeControl "40/5400+30:1800+30"]

1. e4 {[%emt 0:00:03]} c5 {[%emt 0:00:07]} 2. Nf3 {[%emt 0:00:05]} Nc6 {[%emt 0:00:04]} 3. d4 {[%emt 0:00:08]} cxd4 {[%emt 0:00:06]} 4. Nxd4 {[%emt 0:00:06]} g6 {[%emt 0:00:20]} 5. Nc3 {[%emt 0:00:07]} Bg7 {[%emt 0:00:05]} 6. Be3 {[%emt 0:00:09]} Nf6 {[%emt 0:00:15]} 7. Be2 {[%emt 0:00:18]} d6 {[%emt 0:00:11]} 8. Qd2 {[%emt 0:00:18]} O-O {[%emt 0:00:12]} 9. Nxc6 {[%emt 0:00:09]} bxc6 {[%emt 0:00:20]} 10. Bh6 {[%emt 0:00:05]} Rb8 {[%emt 0:05:06]} 11. Bxg7 {[%emt 0:00:11]} Kxg7 {[%emt 0:00:06]} 12. Rb1 {[%emt 0:02:01]} Bb7 {[%emt 0:03:14]} 13. O-O {[%emt 0:01:14]} e6 {[%emt 0:14:24]} 14. Rfd1 {[%emt 0:03:27]} d5 {[%emt 0:00:59]} 15. e5 {[%emt 0:02:00]} Nd7 {[%emt 0:01:34]} 16. f4 {[%emt 0:02:26]} Qb6+ {[%emt 0:08:03]} 17. Kh1 {[%emt 0:00:10]} Rfd8 {[%emt 0:00:42]} 18. Bd3 {[%emt 0:05:36]} c5 {[%emt 0:06:15]} 19. Bb5 {[%emt 0:05:49]} d4 {[%emt 0:10:51]} 20. Bxd7 {[%emt 0:00:10]} Rxd7 {[%emt 0:00:21]} 21. Re1 {[%emt 0:16:20]} Rbd8 {[%emt 0:05:01]} 22. Ne4 {[%emt 0:01:00]} Bxe4 {[%emt 0:00:19]} 23. Rxe4 {[%emt 0:00:06]} c4 {[%emt 0:02:14]} 24. b3 {[%emt 0:02:47]} Qc6 {[%emt 0:07:31]} 25. Rbe1 {[%emt 0:02:09]} Qa6 {[%emt 0:02:00]} 26. bxc4 {[%emt 0:03:36]} Qxc4 {[%emt 0:02:14]} 27. f5 {[%emt 0:20:00]} exf5 {[%emt 0:04:02]} 28. Rh4 {[%emt 0:00:39]} h5 {[%emt 0:05:35]} 29. Rxh5 {[%emt 0:02:04]} Rh8 {[%emt 0:06:54]} 30. Rxh8 {[%emt 0:13:08]} Kxh8 {[%emt 0:00:03]} 31. Rb1 {[%emt 0:02:36]} Kg7 {[%emt 0:01:22]} 32. Qg5 {[%emt 0:01:32]} Qe6 {[%emt 0:01:10]} 33. Rb5 {[%emt 0:03:15]} Rc7 {[%emt 0:02:15]} 34. Qd2 {[%emt 0:02:12]} Qc4 {[%emt 0:00:43]} 35. Rb1 {[%emt 0:02:11]} Qxa2 {[%emt 0:01:29]} 36. Rf1 {[%emt 0:01:03]} Qxc2 {[%emt 0:01:48]} 37. Qxd4 {[%emt 0:00:13]} Qc4 {[%emt 0:02:46]} 38. Qxc4 {[%emt 0:02:52]} Rxc4 {[%emt 0:00:05]} 39. Ra1 {[%emt 0:00:19]} a5 {[%emt 0:00:44]} 40. Kg1 {[%emt 0:00:07]} Rc5 {[%emt 0:00:26]} 41. Re1 {[%emt 0:30:12]} a4 {[%emt 0:30:25]} 42. h3 {[%emt 0:00:56]} a3 {[%emt 0:00:16]} 43. Re2 {[%emt 0:01:15]} Ra5 {[%emt 0:03:00]} 44. Ra2 {[%emt 0:00:53]} Kf8 {[%emt 0:00:11]} 45. Kf2 {[%emt 0:01:05]} Ke7 {[%emt 0:00:09]} 46. Ke3 {[%emt 0:00:41]} Ke6 {[%emt 0:00:06]} 47. Kd4 {[%emt 0:00:40]} Ra4+ {[%emt 0:02:34]} 48. Kc5 {[%emt 0:00:06]} Kxe5 {[%emt 0:00:21]} 49. Re2+ {[%emt 0:00:25]} Kf4 {[%emt 0:00:59]} 50. Ra2 {[%emt 0:00:23]} Kg3 {[%emt 0:00:40]} 51. Kd5 {[%emt 0:00:31]} f4 {[%emt 0:00:23]} 52. Ke5 {[%emt 0:00:26]} f3 {[%emt 0:00:38]} 53. gxf3 Kxf3 54. Kf6 {[%emt 0:01:04]} Ra7 {[%emt 0:00:58]} 55. Kg5 {[%emt 0:00:08]} Ke3 {[%emt 0:01:05]} 56. h4 {[%emt 0:00:28]} Kd3 {[%emt 0:01:06]} 57. Kg4 {[%emt 0:01:50]} Kc3 {[%emt 0:00:22]} 58. Kf3 {[%emt 0:00:32]} Kb3 {[%emt 0:00:19]} 59. Re2 {[%emt 0:00:07]} a2 {[%emt 0:00:13]} 60. Re3+ {[%emt 0:00:29]} Kc4 {[%emt 0:00:19]} 0-1

[Event "CZE-ch Youth G16 2022"]
[Site "Luhacovice"]
[Date "2022.03.19"]
[Round "9.4"]
[White "Hosova, Sandra"]
[Black "Mullerova, Karina Nela"]
[Result "1-0"]
[ECO "A80"]
[WhiteElo "1545"]
[BlackElo "1250"]
[Annotator "NA"]
[PlyCount "65"]
[EventDate "2022.03.12"]
[EventType "swiss"]
[EventCountry "CZE"]
[SourceTitle "playchess.com"]
[Source "ChessBase"]
[SourceQuality "1"]
[TimeControl "40/5400+30:1800+30"]

1. d4 {[%emt 0:00:10]} f5 {[%emt 0:00:36]} 2. Bf4 {[%emt 0:04:14]} Nf6 {[%emt 0:00:16]} 3. e3 {[%emt 0:01:13]} e6 {[%emt 0:00:57]} 4. Bd3 {[%emt 0:01:10]} d5 {[%emt 0:00:08]} 5. Nf3 c5 {[%emt 0:00:22]} 6. c3 {[%emt 0:02:42]} Nc6 {[%emt 0:02:15]} 7. Nbd2 {[%emt 0:02:29]} cxd4 {[%emt 0:02:40]} 8. exd4 {[%emt 0:01:34]} Bd6 {[%emt 0:03:33]} 9. Ne5 {[%emt 0:02:15]} Bxe5 {[%emt 0:05:02]} 10. dxe5 {[%emt 0:02:41]} Nd7 {[%emt 0:08:07]} 11. Qh5+ {[%emt 0:02:53]} g6 {[%emt 0:04:15]} 12. Qe2 {[%emt 0:03:40]} a6 {[%emt 0:07:27]} 13. h4 {[%emt 0:07:38]} Qe7 {[%emt 0:04:00]} 14. Nf3 {[%emt 0:08:14]} h6 {[%emt 0:01:38]} 15. O-O-O {[%emt 0:06:25]} Nc5 {[%emt 0:03:17]} 16. Bc2 {[%emt 0:02:30]} b5 {[%emt 0:09:47]} 17. g4 {[%emt 0:06:47]} Bb7 {[%emt 0:06:31]} 18. gxf5 {[%emt 0:09:12]} gxf5 {[%emt 0:02:13]} 19. Bd2 {[%emt 0:09:17]} O-O-O {[%emt 0:04:15]} 20. Rhg1 {[%emt 0:01:37]} Qf7 {[%emt 0:07:13]} 21. Rg2 {[%emt 0:04:51]} Rdg8 {[%emt 0:00:39]} 22. Rxg8+ {[%emt 0:02:15]} Qxg8 {[%emt 0:01:26]} 23. Rg1 {[%emt 0:02:04]} Qf8 {[%emt 0:00:45]} 24. Rg6 {[%emt 0:01:55]} Kd7 {[%emt 0:07:09]} 25. Qe3 {[%emt 0:02:31]} h5 {[%emt 0:02:18]} 26. Ng5 {[%emt 0:00:59]} Nd8 {[%emt 0:03:32]} 27. Rf6 {[%emt 0:06:34]} Qe7 {[%emt 0:00:38]} 28. Bxf5 {[%emt 0:01:59]} exf5 {[%emt 0:02:14]} 29. Rd6+ {[%emt 0:00:06]} Ke8 {[%emt 0:01:00]} 30. Qxc5 {[%emt 0:00:07]} Qxe5 {[%emt 0:01:59]} 31. Qc7 {[%emt 0:01:32]} Qe7 {[%emt 0:01:52]} 32. Rxd8+ {[%emt 0:00:41]} Qxd8 {[%emt 0:00:26]} 33. Qf7# {[%emt 0:00:08]} 1-0

[Event "CZE-ch Youth G16 2022"]
[Site "Luhacovice"]
[Date "2022.03.19"]
[Round "9.5"]
[White "Sargsyan, Anna B."]
[Black "Fizerova, Lucie"]
[Result "0-1"]
[ECO "B56"]
[WhiteElo "1602"]
[BlackElo "1804"]
[Annotator "NA"]
[PlyCount "70"]
[EventDate "2022.03.12"]
[EventType "swiss"]
[EventCountry "CZE"]
[SourceTitle "playchess.com"]
[Source "ChessBase"]
[SourceQuality "1"]
[TimeControl "40/5400+30:1800+30"]

1. e4 {[%emt 0:00:03]} c5 {[%emt 0:00:05]} 2. Nf3 {[%emt 0:00:20]} d6 {[%emt 0:00:12]} 3. d4 {[%emt 0:00:40]} cxd4 {[%emt 0:00:06]} 4. Nxd4 {[%emt 0:00:12]} Nf6 {[%emt 0:00:04]} 5. Nc3 {[%emt 0:00:15]} Nc6 {[%emt 0:00:19]} 6. Be3 {[%emt 0:02:10]} e5 {[%emt 0:00:27]} 7. Nxc6 {[%emt 0:02:00]} bxc6 {[%emt 0:00:06]} 8. h3 {[%emt 0:02:30]} Be7 {[%emt 0:01:13]} 9. Bc4 {[%emt 0:02:06]} O-O {[%emt 0:00:47]} 10. O-O {[%emt 0:00:31]} Nxe4 {[%emt 0:00:52]} 11. Be2 {[%emt 0:05:41]} Nxc3 {[%emt 0:00:56]} 12. bxc3 {[%emt 0:00:47]} d5 {[%emt 0:00:36]} 13. Rb1 {[%emt 0:06:20]} f5 {[%emt 0:00:40]} 14. f4 {[%emt 0:03:30]} e4 {[%emt 0:00:50]} 15. c4 {[%emt 0:01:25]} Bf6 {[%emt 0:07:57]} 16. Bd4 {[%emt 0:04:11]} Be6 {[%emt 0:02:12]} 17. cxd5 {[%emt 0:03:03]} Qxd5 {[%emt 0:02:17]} 18. Bxf6 {[%emt 0:01:20]} Rxf6 {[%emt 0:00:22]} 19. Qxd5 {[%emt 0:00:28]} cxd5 {[%emt 0:00:52]} 20. Rfc1 {[%emt 0:01:20]} d4 {[%emt 0:00:23]} 21. Bf1 {[%emt 0:02:01]} Bxa2 {[%emt 0:00:20]} 22. Rb4 {[%emt 0:01:08]} Rd6 {[%emt 0:01:33]} 23. Bc4+ {[%emt 0:01:53]} Bxc4 {[%emt 0:00:16]} 24. Rxc4 {[%emt 0:00:10]} a5 {[%emt 0:01:09]} 25. Rd1 {[%emt 0:02:19]} Rad8 {[%emt 0:01:02]} 26. Rc5 {[%emt 0:03:33]} Rd5 {[%emt 0:00:53]} 27. Rxd5 {[%emt 0:00:55]} Rxd5 {[%emt 0:00:02]} 28. c3 {[%emt 0:02:13]} d3 {[%emt 0:00:28]} 29. Kf2 {[%emt 0:01:17]} Rc5 {[%emt 0:00:28]} 30. Ra1 {[%emt 0:04:42]} h6 {[%emt 0:05:57]} 31. Ke3 {[%emt 0:03:32]} g5 {[%emt 0:01:05]} 32. fxg5 {[%emt 0:00:42]} hxg5 {[%emt 0:00:16]} 33. Kd4 {[%emt 0:00:46]} Rc8 {[%emt 0:01:11]} 34. Rxa5 {[%emt 0:00:33]} d2 {[%emt 0:00:20]} 35. Ra1 {[%emt 0:00:58]} Rd8+ {[%emt 0:00:13]} 0-1

[Event "CZE-ch Youth G16 2022"]
[Site "Luhacovice"]
[Date "2022.03.19"]
[Round "9.8"]
[White "Macova, Marketa"]
[Black "Sehnoutkova, Laura"]
[Result "1/2-1/2"]
[ECO "D53"]
[WhiteElo "1224"]
[BlackElo "1126"]
[Annotator "NA"]
[PlyCount "94"]
[EventDate "2022.03.12"]
[EventType "swiss"]
[EventCountry "CZE"]
[SourceTitle "playchess.com"]
[Source "ChessBase"]
[SourceQuality "1"]
[TimeControl "40/5400+30:1800+30"]

1. d4 {[%emt 0:00:02]} d5 {[%emt 0:00:19]} 2. c4 {[%emt 0:00:09]} e6 {[%emt 0:00:31]} 3. Nc3 {[%emt 0:00:16]} Nf6 {[%emt 0:00:45]} 4. Bg5 {[%emt 0:00:19]} Be7 {[%emt 0:00:32]} 5. e3 {[%emt 0:00:33]} Bd7 {[%emt 0:00:48]} 6. Bxf6 {[%emt 0:01:22]} Bxf6 {[%emt 0:00:34]} 7. cxd5 {[%emt 0:00:30]} exd5 {[%emt 0:01:07]} 8. Nxd5 {[%emt 0:00:30]} O-O {[%emt 0:00:56]} 9. Bd3 {[%emt 0:01:48]} Bc6 {[%emt 0:01:49]} 10. Nxf6+ {[%emt 0:01:51]} Qxf6 {[%emt 0:00:13]} 11. Nf3 {[%emt 0:01:10]} Nd7 {[%emt 0:00:41]} 12. e4 {[%emt 0:07:16]} Nb6 {[%emt 0:04:27]} 13. O-O {[%emt 0:02:16]} Rfe8 {[%emt 0:02:30]} 14. Qc2 {[%emt 0:02:39]} Rac8 {[%emt 0:04:53]} 15. Rac1 {[%emt 0:04:50]} Bd7 {[%emt 0:10:34]} 16. Rfe1 {[%emt 0:06:41]} c6 {[%emt 0:02:08]} 17. Re3 {[%emt 0:08:19]} g6 {[%emt 0:03:33]} 18. e5 {[%emt 0:06:28]} Qe7 {[%emt 0:02:24]} 19. h4 {[%emt 0:03:11]} Nd5 {[%emt 0:01:35]} 20. Ree1 {[%emt 0:01:14]} Bg4 {[%emt 0:04:48]} 21. Nh2 {[%emt 0:01:37]} Be6 {[%emt 0:03:25]} 22. h5 {[%emt 0:02:00]} Qg5 {[%emt 0:05:45]} 23. hxg6 {[%emt 0:02:47]} hxg6 {[%emt 0:00:26]} 24. g3 {[%emt 0:09:33]} Kg7 {[%emt 0:04:18]} 25. Nf3 {[%emt 0:04:18]} Qg4 {[%emt 0:02:40]} 26. Nh2 {[%emt 0:03:16]} Qh3 {[%emt 0:02:21]} 27. Bf1 {[%emt 0:00:46]} Qh5 {[%emt 0:01:52]} 28. Qe4 {[%emt 0:03:18]} Rh8 {[%emt 0:02:25]} 29. Qh4 {[%emt 0:02:06]} Qxh4 {[%emt 0:01:39]} 30. gxh4 {[%emt 0:00:09]} Rxh4 {[%emt 0:00:13]} 31. Nf3 {[%emt 0:02:28]} Rg4+ {[%emt 0:02:00]} 32. Bg2 {[%emt 0:01:08]} Nf4 {[%emt 0:03:16]} 33. Re4 {[%emt 0:05:17]} Bd5 {[%emt 0:01:19]} 34. Rxf4 {[%emt 0:01:57]} Rxf4 {[%emt 0:00:12]} 35. Rc3 {[%emt 0:01:06]} Bxf3 {[%emt 0:00:53]} 36. Bxf3 {[%emt 0:01:01]} Rxd4 {[%emt 0:01:21]} 37. Rb3 {[%emt 0:01:20]} b5 {[%emt 0:02:05]} 38. Rc3 {[%emt 0:00:48]} c5 {[%emt 0:00:52]} 39. Rc2 {[%emt 0:01:11]} c4 {[%emt 0:01:23]} 40. Kf1 {[%emt 0:00:34]} b4 {[%emt 0:01:28]} 41. b3 {[%emt 0:31:21]} c3 {[%emt 0:30:31]} 42. Kg2 {[%emt 0:01:34]} Rcd8 {[%emt 0:00:42]} 43. Kg3 {[%emt 0:01:26]} Rd2 {[%emt 0:00:24]} 44. Rc1 {[%emt 0:00:10]} Rxa2 {[%emt 0:00:18]} 45. Bd1 {[%emt 0:01:24]} Rdd2 {[%emt 0:00:29]} 46. Bf3 {[%emt 0:00:50]} Rxf2 {[%emt 0:00:31]} 47. Kg4 {[%emt 0:00:56]} Rab2 {[%emt 0:01:08]} 1/2-1/2